bitfinex/quotes_SOLUSD_20260202
["timestamp","ask_amount","ask_price","bid_price","bid_amount"]
[1770015115360,4.37318276,100.62,100.58,15.07580241]
[1770015115564,4.37318276,100.62,100.59,15.07580241]
[1770015115762,27.64,100.7,100.61,15.07580241]
[1770015115955,4.37318276,100.66,100.61,15.07580241]
[1770015116161,4.37318276,100.65,100.6,15.07580241]
[1770015116364,4.37318276,100.65,100.61,15.07580241]
[1770015116551,19.73330831,100.62,100.52,1.55130177]
[1770015116759,4.37318276,100.62,100.59,15.07580241]
[1770015116951,4.37318276,100.62,100.58,15.07580241]
[1770015117650,4.37318276,100.66,100.61,15.07580241]
[1770015117855,4.37318276,100.66,100.63,15.07580241]
[1770015118463,32.01318276,100.7,100.65,15.07580241]
[1770015118670,4.37318276,100.69,100.66,15.07580241]
[1770015118851,4.37318276,100.69,100.65,15.07580241]
[1770015119874,4.6575059,100.68,100.64,15.07580241]
[1770015120067,4.6575059,100.68,100.63,15.07580241]
[1770015120267,4.37318276,100.65,100.61,15.07580241]
[1770015120462,19.73330831,100.63,100.57,15.07580241]
[1770015120668,4.37318276,100.62,100.57,15.07580241]
[1770015120863,0.28432314,100.61,100.57,15.07580241]
[1770015121077,4.6575059,100.59,100.54,15.07580241]
[1770015121259,19.73330831,100.59,100.54,15.07580241]
[1770015121459,4.37318276,100.56,100.52,15.07580241]
[1770015121659,4.6575059,100.55,100.5,15.27580241]
[1770015121966,4.37318276,100.54,100.5,0.2]
[1770015122169,4.6575059,100.56,100.53,15.07580241]
[1770015122679,4.37318276,100.56,100.53,15.07580241]
[1770015122880,4.37318276,100.59,100.5,1.75130177]
[1770015123076,4.37318276,100.58,100.55,15.07580241]
[1770015123279,4.37318276,100.56,100.52,15.07580241]
[1770015123471,4.37318276,100.56,100.53,15.07580241]
[1770015123697,4.37318276,100.56,100.54,15.07580241]
[1770015124065,4.37318276,100.56,100.5,0.2]
[1770015124273,4.37318276,100.56,100.53,15.07580241]
[1770015124469,4.37318276,100.56,100.54,15.07580241]
[1770015124669,4.37318276,100.56,100.52,15.07580241]
[1770015124869,4.37318276,100.54,100.5,0.2]
[1770015125079,4.37318276,100.54,100.51,15.07580241]
[1770015125484,27.64,100.58,100.53,15.07580241]
[1770015125662,4.37318276,100.57,100.54,15.07580241]
[1770015126059,4.37318276,100.59,100.56,15.07580241]
[1770015126264,4.37318276,100.63,100.56,1.55130177]
[1770015126476,4.37318276,100.61,100.56,15.02867874]
[1770015126684,4.6575059,100.59,100.55,15.02867874]
[1770015126886,4.6575059,100.59,100.54,15.02867874]
[1770015127483,4.37318276,100.56,100.51,15.02867874]
[1770015127678,15.31300188,100.57,100.51,15.02867874]
[1770015127679,4.37318276,100.55,100.51,15.02867874]
[1770015127882,4.3468369,100.59,100.54,15.02867874]
[1770015128081,4.63116004,100.59,100.54,15.02867874]
[1770015128275,4.63116004,100.59,100.5,0.48432314]
[1770015128276,4.3468369,100.6,100.55,15.02867874]
[1770015128488,4.3468369,100.6,100.57,15.02867874]
[1770015128792,4.48899847,100.6,100.56,15.02867874]
[1770015128983,4.48899847,100.6,100.53,1.55130177]
[1770015128984,4.48899847,100.6,100.55,15.02867874]
[1770015129181,4.3468369,100.59,100.54,15.02867874]
[1770015129378,4.3468369,100.58,100.54,15.02867874]
[1770015129778,4.3468369,100.58,100.55,15.02867874]
[1770015130094,4.3468369,100.58,100.53,15.02867874]
[1770015130394,4.3468369,100.57,100.54,15.02867874]
[1770015130689,4.3468369,100.57,100.53,15.02867874]
[1770015131074,4.3468369,100.55,100.51,15.02867874]
[1770015131274,4.3468369,100.55,100.5,15.22867874]
[1770015131471,4.3468369,100.57,100.52,15.02867874]
[1770015131682,4.3468369,100.57,100.53,15.02867874]
[1770015131891,4.3468369,100.57,100.5,1.75130177]
[1770015132093,4.3468369,100.57,100.52,15.02867874]
[1770015132302,4.3468369,100.56,100.51,15.02867874]
[1770015132779,4.3468369,100.53,100.5,0.2]
[1770015132975,4.3468369,100.52,100.47,15.02867874]
[1770015133191,4.3468369,100.51,100.46,15.02867874]
[1770015133388,4.3468369,100.53,100.48,15.02867874]
[1770015133583,31.91527085,100.56,100.45,15.02867874]
[1770015133584,4.3468369,100.5,100.45,15.02867874]
[1770015133792,4.3468369,100.5,100.43,1.75130177]
[1770015133994,4.3468369,100.49,100.44,15.02867874]
[1770015134197,19.37551564,100.49,100.44,15.02867874]
[1770015134397,4.3468369,100.48,100.41,1.75130177]
[1770015134708,4.3468369,100.5,100.45,15.02867874]
[1770015135003,4.3468369,100.52,100.47,15.02867874]
[1770015135194,4.63116004,100.52,100.47,15.02867874]
[1770015135499,15.02867874,100.53,100.42,0.28432314]
[1770015135500,4.3468369,100.5,100.42,0.28432314]
[1770015135681,4.3468369,100.5,100.45,15.02867874]
[1770015136295,4.3468369,100.5,100.46,15.02867874]
[1770015137088,4.3468369,100.5,100.47,15.02867874]
[1770015137287,4.3468369,100.5,100.46,15.02867874]
[1770015137790,4.3468369,100.5,100.47,15.02867874]
[1770015138097,4.3468369,100.52,100.47,15.02867874]
[1770015138307,4.3468369,100.52,100.48,15.02867874]
[1770015138506,4.3468369,100.52,100.47,15.02867874]
[1770015138680,4.48899847,100.54,100.49,15.02867874]
[1770015138885,4.3468369,100.54,100.5,15.02867874]
[1770015139107,4.3468369,100.54,100.51,15.02867874]
[1770015139786,4.3468369,100.56,100.54,15.02867874]
[1770015140403,4.3468369,100.56,100.51,15.02867874]
[1770015140702,4.3468369,100.56,100.52,15.02867874]
[1770015140909,4.3468369,100.58,100.53,15.02867874]
[1770015141090,4.3468369,100.58,100.54,15.02867874]
[1770015141487,4.3468369,100.57,100.52,15.02867874]
[1770015142003,4.3468369,100.57,100.53,15.02867874]
[1770015142302,19.37551564,100.56,100.51,15.02867874]
[1770015142486,4.3468369,100.54,100.49,15.02867874]
[1770015142686,4.3468369,100.54,100.5,15.02867874]
[1770015143293,4.3468369,100.53,100.49,15.02867874]
[1770015143602,165.8,100.6,100.52,15.02867874]
[1770015143603,4.3468369,100.57,100.52,15.02867874]
[1770015144211,4.3468369,100.54,100.49,15.02867874]
[1770015144387,4.3468369,100.53,100.48,15.02867874]
[1770015144584,4.3468369,100.53,100.49,15.02867874]
[1770015144988,4.3468369,100.52,100.47,15.02867874]
[1770015145404,4.3468369,100.52,100.48,15.02867874]
[1770015146183,30.12,100.6,100.46,1.75130177]
[1770015146184,4.3468369,100.56,100.51,15.02867874]
[1770015146382,4.3468369,100.56,100.53,15.02867874]
[1770015146693,4.3468369,100.56,100.51,15.02867874]
[1770015147103,4.3468369,100.56,100.52,15.02867874]
[1770015147307,4.3468369,100.58,100.54,15.02867874]
[1770015147609,4.3468369,100.58,100.49,2.03562491]
[1770015147905,4.3468369,100.6,100.53,15.02867874]
[1770015148201,27.66,100.61,100.53,15.02867874]
[1770015148202,4.3468369,100.57,100.53,15.02867874]
[1770015149189,4.3468369,100.57,100.54,15.02867874]
[1770015149701,4.3468369,100.59,100.55,15.02867874]
[1770015149907,4.3468369,100.59,100.56,15.02867874]
[1770015150193,4.3468369,100.59,100.52,1.75130177]
[1770015150406,4.3468369,100.59,100.53,1.75130177]
[1770015151609,32.0068369,100.61,100.54,1.89346334]
[1770015151908,32.0068369,100.61,100.58,15.02867874]
[1770015152112,32.0068369,100.61,100.57,15.02867874]
[1770015152307,4.3468369,100.6,100.56,15.02867874]
[1770015152811,4.3468369,100.6,100.55,15.02867874]
[1770015153313,4.3468369,100.6,100.56,15.02867874]
[1770015153489,4.3468369,100.6,100.57,15.02867874]
[1770015153684,4.3468369,100.6,100.56,15.02867874]
[1770015153908,4.3468369,100.6,100.55,15.02867874]
[1770015154313,4.3468369,100.59,100.54,15.02867874]
[1770015154624,4.3468369,100.59,100.55,9.88952058]
[1770015154795,4.3468369,100.58,100.54,9.88952058]
[1770015154995,4.3468369,100.58,100.53,9.88952058]
[1770015155209,4.3468369,100.57,100.52,9.88952058]
[1770015155591,4.63116004,100.59,100.54,9.88952058]
[1770015155792,4.63116004,100.59,100.51,0.28432314]
[1770015155793,4.3468369,100.59,100.55,9.88952058]
[1770015156298,4.3468369,100.59,100.54,9.88952058]
[1770015158003,4.3468369,100.59,100.51,0.28432314]
[1770015158206,4.33089044,100.56,100.51,9.88952058]
[1770015158387,4.33089044,100.56,100.52,9.88952058]
[1770015159011,4.33089044,100.54,100.49,9.88952058]
[1770015159615,14.22041102,100.54,100.49,9.88952058]
[1770015159994,4.33089044,100.52,100.42,1.75130177]
[1770015160312,14.22041102,100.5,100.44,9.88952058]
[1770015160513,14.22041102,100.48,100.43,9.88952058]
[1770015161015,14.22041102,100.48,100.42,11.64082235]
[1770015161199,14.22041102,100.46,100.4,11.64082235]
[1770015161796,31.91527085,100.51,100.39,9.88952058]
[1770015161797,14.22041102,100.45,100.39,9.88952058]
[1770015162115,4.33089044,100.44,100.39,9.88952058]
[1770015162500,4.33089044,100.46,100.42,9.88952058]
[1770015162700,4.33089044,100.48,100.43,9.88952058]
[1770015163299,4.33089044,100.48,100.41,1.75130177]
[1770015163607,4.33089044,100.48,100.43,9.88952058]
[1770015164111,27.64,100.51,100.46,9.88952058]
[1770015164112,31.97089044,100.51,100.46,9.88952058]
[1770015164427,4.33089044,100.51,100.48,9.88952058]
[1770015164627,9.88952058,100.53,100.44,0.28432314]
[1770015164628,4.33089044,100.53,100.49,9.88952058]
[1770015164802,4.33089044,100.53,100.5,9.88952058]
[1770015166211,27.66,100.56,100.51,1.75130177]
[1770015166414,27.66,100.56,100.53,9.88952058]
[1770015166622,4.33089044,100.59,100.54,9.88952058]
[1770015166817,4.33089044,100.59,100.55,9.88952058]
[1770015167511,4.33089044,100.59,100.56,9.88952058]
[1770015168110,31.97250727,100.61,100.57,9.88952058]
[1770015168307,4.31250727,100.63,100.58,9.88952058]
[1770015168505,4.31250727,100.62,100.58,15.02738663]
[1770015168730,4.31250727,100.62,100.57,15.02738663]
[1770015168907,0.14216157,100.6,100.56,15.02738663]
[1770015169119,19.3398939,100.61,100.56,15.02738663]
[1770015169505,4.31250727,100.6,100.56,15.02738663]
[1770015170318,4.59683041,100.59,100.54,15.02738663]
[1770015170717,4.31250727,100.58,100.54,15.02738663]
[1770015171304,4.31250727,100.58,100.53,15.02738663]
[1770015171505,4.59683041,100.57,100.52,15.02738663]
[1770015171905,4.31250727,100.56,100.52,15.02738663]
[1770015172105,4.31250727,100.55,100.51,15.02738663]
[1770015172507,4.31250727,100.54,100.5,15.02738663]
[1770015172922,15.02738663,100.53,100.48,15.02738663]
[1770015173225,4.31250727,100.53,100.48,15.02738663]
[1770015173434,4.31250727,100.55,100.5,15.02738663]
[1770015173606,4.31250727,100.55,100.51,15.02738663]
[1770015174009,4.31250727,100.54,100.49,15.02738663]
[1770015174314,4.31250727,100.54,100.5,15.02738663]
[1770015175626,4.31250727,100.54,100.49,15.02738663]
[1770015176412,4.31250727,100.54,100.5,15.02738663]
[1770015176710,4.31250727,100.54,100.51,15.02738663]
[1770015176927,19.3398939,100.56,100.51,15.02738663]
[1770015177430,4.31250727,100.55,100.51,15.02738663]
[1770015178329,4.31250727,100.55,100.5,15.02738663]
[1770015178330,4.31250727,100.54,100.5,15.02738663]
[1770015178531,4.31250727,100.54,100.49,15.02738663]
[1770015179627,4.31250727,100.54,100.5,15.02738663]
[1770015181325,4.31250727,100.56,100.51,15.02738663]
[1770015181628,4.31250727,100.56,100.49,1.75130177]
[1770015181629,4.31250727,100.56,100.52,15.02738663]
[1770015181829,4.31250727,100.55,100.51,15.02738663]
[1770015182131,4.31250727,100.51,100.46,15.02738663]
[1770015182328,19.3398939,100.5,100.45,15.02738663]
[1770015182526,19.3398939,100.48,100.43,15.02738663]
[1770015182836,62.98450915,100.53,100.41,16.7786884]
[1770015182837,4.31250727,100.46,100.41,16.7786884]
[1770015183214,4.31250727,100.47,100.42,15.02738663]
[1770015183414,4.31250727,100.46,100.42,15.02738663]
[1770015183625,4.31250727,100.46,100.41,15.02738663]
[1770015183824,4.31250727,100.45,100.41,15.02738663]
[1770015184831,15.02738663,100.46,100.41,15.02738663]
[1770015184832,4.31250727,100.46,100.41,15.02738663]
[1770015185013,4.31250727,100.46,100.38,0.2]
[1770015185014,15.02738663,100.48,100.42,15.02738663]
[1770015185211,4.31250727,100.48,100.45,15.02738663]
[1770015185416,4.31250727,100.5,100.46,15.02738663]
[1770015185834,4.31250727,100.49,100.44,15.02738663]
[1770015186025,4.31250727,100.49,100.45,15.02738663]
[1770015186422,4.31250727,100.49,100.45,15.06555028]
[1770015186823,4.31250727,100.48,100.44,15.06555028]
[1770015188023,4.44834011,100.47,100.42,15.06555028]
[1770015188539,4.16401697,100.46,100.42,15.06555028]
[1770015189038,4.16401697,100.46,100.43,15.06555028]
[1770015189637,4.16401697,100.51,100.45,15.06555028]
[1770015189838,4.16401697,100.5,100.45,15.06555028]
[1770015190541,4.16401697,100.5,100.46,9.90731208]
[1770015190740,4.16401697,100.5,100.45,9.90731208]
[1770015191637,31.82401697,100.52,100.46,9.90731208]
[1770015191819,4.16401697,100.5,100.46,9.90731208]
[1770015192339,4.16401697,100.49,100.45,9.90731208]
[1770015192923,4.16401697,100.49,100.44,9.90731208]
[1770015193530,4.16401697,100.49,100.45,9.90731208]
[1770015194535,4.16401697,100.51,100.47,9.90731208]
[1770015194837,4.16401697,100.53,100.48,9.90731208]
[1770015195028,4.16401697,100.53,100.49,9.90731208]
[1770015196542,4.16401697,100.57,100.52,9.90731208]
[1770015197053,4.16401697,100.57,100.53,9.90731208]
[1770015197335,4.16401697,100.57,100.51,1.75130177]
[1770015197336,4.16401697,100.57,100.54,9.90731208]
[1770015197744,4.16401697,100.57,100.53,9.90731208]
[1770015198938,4.16401697,100.56,100.52,9.90731208]
[1770015199566,193.46,100.62,100.55,9.90731208]
[1770015199762,4.16401697,100.62,100.58,9.90731208]
[1770015199930,4.16401697,100.6,100.54,1.75130177]
[1770015200250,4.16401697,100.58,100.53,9.90731208]
[1770015200552,4.16401697,100.58,100.54,9.90731208]
[1770015200849,4.16401697,100.59,100.56,9.90731208]
[1770015201526,4.16401697,100.61,100.58,9.90731208]
[1770015201726,4.16401697,100.61,100.57,9.90731208]
[1770015202042,4.16401697,100.6,100.56,9.90731208]
[1770015202230,4.16401697,100.6,100.55,9.90731208]
[1770015202760,4.16401697,100.6,100.56,9.90731208]
[1770015203058,4.16401697,100.59,100.55,9.90731208]
[1770015203661,4.16401697,100.59,100.56,9.90731208]
[1770015204355,4.16401697,100.59,100.55,9.90731208]
[1770015204663,4.16401697,100.59,100.56,9.90731208]
[1770015204870,4.16401697,100.59,100.52,0.14216157]
[1770015205041,4.16401697,100.59,100.55,9.90731208]
[1770015205230,4.44834011,100.61,100.56,9.90731208]
[1770015206285,4.16401697,100.62,100.58,9.90731208]
[1770015206735,4.16401697,100.62,100.57,9.90731208]
[1770015206934,4.16401697,100.61,100.57,9.90731208]
[1770015207463,4.16401697,100.61,100.56,9.90731208]
[1770015207675,4.16401697,100.61,100.57,9.90731208]
[1770015207862,14.07132905,100.6,100.51,6.02657262]
[1770015208065,4.16401697,100.57,100.53,9.90731208]
[1770015208348,31.82401697,100.59,100.53,1.75130177]
[1770015208552,4.16401697,100.61,100.58,9.90731208]
[1770015208950,4.16401697,100.61,100.57,9.90731208]
[1770015209140,4.16401697,100.61,100.58,9.90731208]
[1770015209335,4.16401697,100.61,100.54,0.28432314]
[1770015209336,4.16401697,100.63,100.6,9.90731208]
[1770015209554,4.16401697,100.63,100.59,9.90731208]
[1770015210460,4.16401697,100.63,100.58,9.90731208]
[1770015210838,4.16401697,100.61,100.57,9.90731208]
[1770015211037,4.16401697,100.61,100.54,1.75130177]
[1770015211245,4.16401697,100.6,100.56,9.90731208]
[1770015211550,31.82401697,100.62,100.58,9.90731208]
[1770015211868,4.16401697,100.62,100.58,9.90731208]
[1770015212065,4.16401697,100.62,100.59,9.90731208]
[1770015212362,4.16401697,100.62,100.58,9.90731208]
[1770015212740,175.80731208,100.68,100.61,9.90731208]
[1770015212940,4.16401697,100.66,100.63,9.90731208]
[1770015213341,4.16401697,100.66,100.59,1.75130177]
[1770015213540,4.26401697,100.68,100.65,9.90731208]
[1770015213844,4.26401697,100.68,100.64,9.90731208]
[1770015214043,4.16401697,100.67,100.63,9.90731208]
[1770015214664,4.16401697,100.65,100.61,9.90731208]
[1770015215052,4.16401697,100.64,100.59,9.90731208]
[1770015215256,4.16401697,100.64,100.56,1.75130177]
[1770015215437,4.16401697,100.63,100.57,1.75130177]
[1770015215755,4.16401697,100.63,100.59,9.90731208]
[1770015216264,4.16401697,100.63,100.57,1.75130177]
[1770015216265,4.16401697,100.63,100.61,9.90731208]
[1770015216442,4.16401697,100.65,100.61,9.90731208]
[1770015216782,4.16401697,100.66,100.63,9.90731208]
[1770015216945,4.26401697,100.68,100.65,9.90731208]
[1770015218269,4.16482778,100.66,100.62,9.90731208]
[1770015218465,4.16482778,100.65,100.6,9.90731208]
[1770015218651,4.16482778,100.65,100.55,4.38121853]
[1770015218652,4.16482778,100.61,100.55,4.38121853]
[1770015218968,31.80482778,100.65,100.6,9.90731208]
[1770015219268,4.16482778,100.63,100.59,9.90731208]
[1770015219443,4.16482778,100.63,100.6,9.90731208]
[1770015219642,4.16482778,100.64,100.61,9.90731208]
[1770015219845,4.16482778,100.64,100.6,9.90731208]
[1770015220052,4.16482778,100.64,100.61,9.90731208]
[1770015220266,4.16482778,100.64,100.6,9.90731208]
[1770015220466,4.16482778,100.63,100.59,9.90731208]
[1770015220869,4.16482778,100.63,100.6,9.90731208]
[1770015221565,4.16482778,100.63,100.61,9.90731208]
[1770015221767,4.16482778,100.63,100.6,9.90731208]
[1770015222070,4.16482778,100.63,100.58,9.90731208]
[1770015222673,4.16482778,100.63,100.6,9.90731208]
[1770015223775,4.16482778,100.62,100.56,4.38121853]
[1770015224070,4.16482778,100.61,100.56,9.90731208]
[1770015224451,4.16482778,100.61,100.55,9.90731208]
[1770015224452,4.16482778,100.6,100.55,9.90731208]
[1770015224658,4.16482778,100.58,100.53,9.90731208]
[1770015224857,4.16482778,100.57,100.53,9.90731208]
[1770015225652,4.16482778,100.56,100.52,9.90731208]
[1770015226067,4.16482778,100.56,100.51,9.90731208]
[1770015226370,4.16482778,100.53,100.49,0.2]
[1770015226575,4.16482778,100.52,100.49,0.2]
[1770015227155,4.06063691,100.5,100.43,4.38121853]
[1770015227362,4.06063691,100.49,100.45,9.90731208]
[1770015228070,4.06063691,100.47,100.42,9.90731208]
[1770015228258,9.90731208,100.48,100.44,9.90731208]
[1770015228259,4.06063691,100.48,100.44,9.90731208]
[1770015228453,31.70063691,100.5,100.46,9.90731208]
[1770015228655,4.06063691,100.52,100.48,9.90731208]
[1770015228858,4.06063691,100.52,100.49,9.90731208]
[1770015229063,4.06063691,100.52,100.44,0.28432314]
[1770015229064,4.06063691,100.51,100.47,9.90731208]
[1770015229262,4.06063691,100.51,100.49,9.90731208]
[1770015229771,4.06063691,100.51,100.46,4.27820842]
[1770015229772,4.34496005,100.53,100.48,9.90731208]
[1770015230074,4.06063691,100.51,100.44,4.42036999]
[1770015230272,4.06063691,100.51,100.45,9.90731208]
[1770015230273,4.06063691,100.5,100.45,9.90731208]
[1770015230460,4.06063691,100.5,100.46,9.90731208]
[1770015230786,4.06063691,100.52,100.48,9.90731208]
[1770015231158,4.06063691,100.52,100.49,9.90731208]
[1770015231357,41.60794899,100.56,100.5,4.27820842]
[1770015231559,4.06063691,100.56,100.53,9.90731208]
[1770015231757,4.06063691,100.58,100.54,9.90731208]
[1770015232156,9.90731208,100.6,100.48,9.90731208]
[1770015232157,4.06063691,100.6,100.56,9.90731208]
[1770015232358,4.06063691,100.6,100.55,9.90731208]
[1770015232577,4.06063691,100.6,100.54,4.27820842]
[1770015232786,4.06063691,100.62,100.58,9.90731208]
[1770015233197,4.06063691,100.64,100.6,9.90731208]
[1770015233360,9.90731208,100.66,100.62,9.90731208]
[1770015233361,4.06063691,100.66,100.62,9.90731208]
[1770015233980,4.06063691,100.66,100.61,9.90731208]
[1770015234178,13.96794899,100.66,100.61,9.90731208]
[1770015234379,4.16063691,100.68,100.63,9.90731208]
[1770015234587,0.1,100.68,100.65,9.90731208]
[1770015234775,4.16063691,100.68,100.64,9.90731208]
[1770015235173,4.06063691,100.67,100.62,9.90731208]
[1770015235572,13.96794899,100.67,100.62,9.90731208]
[1770015236080,13.96794899,100.67,100.61,14.1855205]
[1770015236291,4.06063691,100.65,100.59,4.27820842]
[1770015236486,14.25227213,100.67,100.61,14.1855205]
[1770015236983,13.96794899,100.67,100.62,9.90731208]
[1770015237488,13.96794899,100.66,100.6,14.1855205]
[1770015237788,14.06794899,100.68,100.62,9.90731208]
[1770015237968,4.06063691,100.67,100.62,9.90731208]
[1770015238488,4.06063691,100.67,100.63,9.90731208]
[1770015238688,10.00731208,100.68,100.64,9.90731208]
[1770015238689,4.16063691,100.68,100.64,9.90731208]
[1770015238889,14.06794899,100.68,100.63,9.90731208]
[1770015239181,4.06063691,100.65,100.6,4.27820842]
[1770015239383,4.06063691,100.67,100.62,9.90731208]
[1770015239586,4.06063691,100.67,100.63,9.90731208]
[1770015240085,4.06063691,100.67,100.62,9.90731208]
[1770015240500,13.96794899,100.67,100.62,9.90731208]
[1770015240663,13.96794899,100.67,100.61,14.1855205]
[1770015240993,4.06063691,100.65,100.6,9.90731208]
[1770015241296,4.06063691,100.65,100.61,9.90731208]
[1770015241870,4.06063691,100.64,100.59,9.90731208]
[1770015242072,4.06063691,100.61,100.56,9.90731208]
[1770015242289,13.96794899,100.61,100.55,14.1855205]
[1770015242478,13.96794899,100.63,100.57,14.1855205]
[1770015242787,4.06063691,100.63,100.59,9.90731208]
[1770015243369,4.06063691,100.63,100.57,4.27820842]
[1770015243370,4.06063691,100.63,100.58,9.90731208]
[1770015244468,4.06063691,100.63,100.58,14.1855205]
[1770015244665,4.27527085,100.66,100.6,9.90731208]
[1770015244666,4.06063691,100.65,100.6,9.90731208]
[1770015244881,13.96794899,100.64,100.59,9.90731208]
[1770015245084,14.06794899,100.68,100.62,14.1855205]
[1770015245289,0.1,100.68,100.64,9.90731208]
[1770015245490,0.1,100.68,100.65,9.90731208]
[1770015246270,4.16063691,100.68,100.64,9.90731208]
[1770015246472,4.16063691,100.68,100.64,9.87121229]
[1770015246895,0.1,100.68,100.64,9.87121229]
[1770015247076,0.1,100.68,100.65,9.87121229]
[1770015247393,0.1,100.68,100.64,14.14942071]
[1770015247592,4.3439455,100.68,100.64,9.87121229]
[1770015247895,14.11515779,100.67,100.62,9.87121229]
[1770015248097,0.1,100.68,100.64,14.24454939]
[1770015248289,14.21515779,100.68,100.62,14.24454939]
[1770015248596,14.21515779,100.68,100.63,9.87121229]
[1770015249178,4.3439455,100.68,100.64,9.87121229]
[1770015249374,0.1,100.68,100.65,9.87121229]
[1770015249773,4.3439455,100.7,100.66,9.87121229]
[1770015251004,9.87121229,100.69,100.64,9.87121229]
[1770015251208,4.2439455,100.68,100.63,14.24454939]
[1770015251496,14.11515779,100.68,100.63,9.87121229]
[1770015251896,14.21515779,100.7,100.64,14.24454939]
[1770015252197,14.21515779,100.7,100.65,9.87121229]
[1770015252703,14.21515779,100.7,100.64,9.87121229]
[1770015252704,4.2439455,100.68,100.64,9.87121229]
[1770015252901,4.2439455,100.68,100.63,14.24454939]
[1770015253099,14.11515779,100.68,100.63,14.24454939]
[1770015253281,4.2439455,100.68,100.63,14.24454939]
[1770015253874,0.1,100.7,100.61,14.24454939]
[1770015253875,4.2439455,100.66,100.61,14.24454939]
[1770015254200,14.11515779,100.64,100.59,14.24454939]
[1770015254396,4.2439455,100.64,100.59,14.24454939]
[1770015254597,14.11515779,100.66,100.6,4.3733371]
[1770015254900,14.11515779,100.66,100.6,14.24454939]
[1770015255199,14.11515779,100.66,100.56,15.23207417]
[1770015255200,14.11515779,100.68,100.63,9.87121229]
[1770015255420,31.9639455,100.7,100.64,4.3733371]
[1770015255589,4.3439455,100.7,100.65,14.24454939]
[1770015255893,0.1,100.7,100.67,9.87121229]
[1770015256599,0.1,100.7,100.66,14.24454939]
[1770015257600,0.1,100.7,100.67,9.87121229]
[1770015257797,0.1,100.7,100.67,14.24454939]
[1770015257981,0.1,100.7,100.67,9.87121229]
[1770015258898,0.1,100.7,100.66,14.24454939]
[1770015259874,0.1,100.7,100.67,9.87121229]
[1770015260073,0.1,100.7,100.67,14.24454939]
[1770015261599,0.1,100.7,100.67,9.87121229]
[1770015261800,0.1,100.7,100.66,9.87121229]
[1770015262001,0.1,100.7,100.66,14.24454939]
[1770015262684,4.3439455,100.7,100.65,9.87121229]
[1770015263085,4.3439455,100.7,100.66,9.87121229]
[1770015263492,9.97121229,100.72,100.68,14.24454939]
[1770015263493,0.1,100.72,100.68,14.24454939]
[1770015263687,0.1,100.72,100.69,9.87121229]
[1770015263887,0.1,100.72,100.68,14.24454939]
[1770015264406,4.2439455,100.71,100.67,9.87121229]
[1770015264605,4.2439455,100.71,100.66,14.24454939]
[1770015264902,4.3439455,100.72,100.68,9.87121229]
[1770015265197,4.3439455,100.72,100.67,4.3733371]
[1770015265198,0.1,100.72,100.69,9.87121229]
[1770015265397,0.1,100.72,100.68,14.24454939]
[1770015266684,0.1,100.72,100.69,9.87121229]
[1770015266885,0.1,100.72,100.68,14.24454939]
[1770015267388,14.21515779,100.72,100.66,4.3733371]
[1770015267589,14.21515779,100.72,100.67,9.87121229]
[1770015268190,14.21515779,100.72,100.67,14.24454939]
[1770015268616,4.2439455,100.71,100.67,14.24454939]
[1770015268912,4.2439455,100.71,100.66,14.24454939]
[1770015269078,4.2439455,100.7,100.66,9.87121229]
[1770015269284,4.2439455,100.7,100.65,14.24454939]
[1770015269716,4.2439455,100.7,100.66,9.87121229]
[1770015270077,4.2439455,100.7,100.63,4.3733371]
[1770015270285,4.2439455,100.68,100.63,4.3733371]
[1770015270482,4.2439455,100.7,100.65,14.24454939]
[1770015270706,4.2439455,100.71,100.67,9.87121229]
[1770015270913,4.3439455,100.72,100.67,14.24454939]
[1770015271085,0.1,100.74,100.71,9.87121229]
[1770015271280,4.2439455,100.76,100.73,9.87121229]
[1770015271704,9.97121229,100.79,100.73,9.87121229]
[1770015271894,4.2439455,100.78,100.74,9.87121229]
[1770015272298,0.1,100.79,100.73,4.65766024]
[1770015272507,4.3439455,100.79,100.75,9.87121229]
[1770015273094,4.3439455,100.79,100.76,9.87121229]
[1770015273303,4.3439455,100.79,100.74,9.87121229]
[1770015273496,4.2439455,100.77,100.72,4.3733371]
[1770015273707,4.2439455,100.77,100.72,14.24454939]
[1770015274089,4.2439455,100.77,100.73,9.87121229]
[1770015274404,9.87121229,100.78,100.73,9.87121229]
[1770015274405,14.11515779,100.78,100.73,9.87121229]
[1770015274605,14.11515779,100.77,100.72,14.24454939]
[1770015274807,4.2439455,100.74,100.69,9.87121229]
[1770015275110,14.11515779,100.74,100.68,14.24454939]
[1770015275695,4.52826864,100.77,100.7,4.3733371]
[1770015275890,14.11515779,100.76,100.71,4.3733371]
[1770015276092,9.97121229,100.79,100.73,14.24454939]
[1770015276293,14.11515779,100.74,100.68,14.24454939]
[1770015276487,0.1,100.79,100.67,14.24454939]
[1770015276488,14.11515779,100.73,100.67,14.24454939]
[1770015276694,4.2439455,100.75,100.71,9.87121229]
[1770015276898,4.2439455,100.77,100.72,14.52887253]
[1770015277095,14.11515779,100.76,100.7,14.24454939]
[1770015277394,9.87121229,100.77,100.72,9.87121229]
[1770015277586,4.2439455,100.78,100.73,14.24454939]
[1770015278290,14.11515779,100.78,100.73,4.3733371]
[1770015278692,14.33098079,100.77,100.71,14.3224616]